fUST/lending_fUST_20240814
["ID","MTS","AMOUNT","RATE_DAILY","PERIOD"]
[334877472,1723624254254,-500.0,0.00013972,2]
[334877473,1723624254264,-520.80364201,0.00013972,2]
[334877474,1723624254275,-500.0,0.00013972,2]
[334877475,1723624254285,-500.0,0.00013972,2]
[334877476,1723624254296,-500.0,0.00013972,2]
[334877477,1723624254306,-500.0,0.00013972,2]
[334877478,1723624254317,-507.04552645,0.00013972,2]
[334877479,1723624254328,-500.0,0.00013972,2]
[334877480,1723624254338,-500.0,0.00013972,2]
[334877481,1723624254350,-687.75,0.00013972,2]
[334877482,1723624254359,-528.00680631,0.00013972,2]
[334877483,1723624254369,-500.0,0.00013972,2]
[334877484,1723624254379,-501.94825757,0.00013972,2]
[334877485,1723624254392,-500.0,0.00013972,2]
[334877486,1723624254403,-500.0,0.00013972,2]
[334877487,1723624254414,-789.68,0.00013972,2]
[334877488,1723624254425,-500.0,0.00013972,2]
[334877489,1723624254435,-502.74414409,0.00013972,2]
[334877490,1723624254447,-500.0,0.00013972,2]
[334877491,1723624254457,-500.0,0.00013972,2]
[334877492,1723624254468,-500.0,0.00013972,2]
[334877493,1723624254479,-500.0,0.00013972,2]
[334877494,1723624254490,-500.0,0.00013972,2]
[334877495,1723624254502,-508.14143774,0.00013972,2]
[334877496,1723624254513,-500.0,0.00013972,2]
[334877497,1723624254523,-500.0,0.00013972,2]
[334877498,1723624254532,-500.0,0.00013972,2]
[334877499,1723624254543,-500.0,0.00013972,2]
[334877500,1723624254555,-500.0,0.00013972,2]
[334877501,1723624254567,-2137.024966,0.00013972,2]
[334877502,1723624254580,-2137.024966,0.00013972,2]
[334877503,1723624254590,-725.88,0.00013972,2]
[334877504,1723624254601,-502.78927557,0.00013972,2]
[334877505,1723624254612,-515.59406435,0.00013972,2]
[334877506,1723624254623,-2137.024966,0.00013972,2]
[334877507,1723624254633,-500.0,0.00013972,2]
[334877508,1723624254650,-2137.024966,0.00013972,2]
[334877509,1723624254662,-500.0,0.00013972,2]
[334877510,1723624254673,-1061.69,0.00013972,2]
[334877511,1723624254685,-503.32028716,0.00013972,2]
[334877512,1723624254695,-500.0,0.00013972,2]
[334877513,1723624254704,-481.5160861,0.00013972,2]
[334877514,1723624254716,-1984.74,0.00013972,2]
[334877515,1723624254728,-500.0,0.00013972,2]
[334877516,1723624254738,-507.24571443,0.00013972,2]
[334877517,1723624254747,-596.9,0.00013972,2]
[334877518,1723624254758,-500.0,0.00013972,2]
[334877519,1723624254767,-500.0,0.00013972,2]
[334877520,1723624254777,-508.6740395,0.00013972,2]
[334877521,1723624254787,-506.75521848,0.00013972,2]
[334877522,1723624254799,-1416.324261,0.00013972,2]
[334877523,1723624254809,-1416.324261,0.00013972,2]
[334877524,1723624254820,-500.0,0.00013972,2]
[334877525,1723624254830,-516.24,0.00013972,2]
[334877526,1723624254841,-254.806915,0.00013972,2]
[334877527,1723624254852,-618.76041107,0.00013972,2]
[334877528,1723624254863,-254.806915,0.00013972,2]
[334877529,1723624254874,-1416.324261,0.00013972,2]
[334877530,1723624254884,-1416.324261,0.00013972,2]
[334877531,1723624254895,-523.02103886,0.00013972,2]
[334877532,1723624254906,-863.21,0.00013972,2]
[334877533,1723624254915,-500.0,0.00013972,2]
[334877534,1723624254924,-254.806915,0.00013972,2]
[334877535,1723624254932,-254.806915,0.00013972,2]
[334877536,1723624254941,-500.0,0.00013972,2]
[334877537,1723624254951,-500.0,0.00013972,2]
[334877538,1723624254961,-504.86735596,0.00013972,2]
[334877539,1723624254972,-506.40745013,0.00013972,2]
[334877540,1723624254983,-500.0,0.00013972,2]
[334877541,1723624254993,-594.2,0.00013972,2]
[334877542,1723624255002,-500.0,0.00013972,2]
[334877543,1723624255013,-503.77248468,0.00013972,2]
[334877544,1723624255025,-507.47288845,0.00013972,2]
[334877545,1723624255035,-372.59642013,0.00013972,2]
[334877546,1723624255047,-500.0,0.00013972,2]
[334877547,1723624255057,-500.0,0.00013972,2]
[334877548,1723624255067,-300.772827,0.00013972,2]
[334877549,1723624255077,-300.772827,0.00013972,2]
[334877550,1723624255087,-404.611122,0.00013972,2]
[334877551,1723624255097,-500.0,0.00013972,2]
[334877552,1723624255108,-404.611122,0.00013972,2]
[334877553,1723624255118,-264.96552425,0.00013972,2]
[334877554,1723624255129,-300.772827,0.00013972,2]
[334877555,1723624255139,-300.772827,0.00013972,2]
[334877556,1723624255149,-404.611122,0.00013972,2]
[334877557,1723624255159,-404.61111739,0.00013972,2]
[334877558,1723624255168,-770.78,0.00013972,2]
[334877559,1723624255179,-4193.67913,0.00013972,2]
[334877560,1723624255188,-4193.67913,0.00013972,2]
[334877561,1723624255199,-151.0,0.00013972,2]
[334877562,1723624255209,-151.0,0.00013972,2]
[334877563,1723624255219,-196.577417,0.00013972,2]
[334877564,1723624255229,-196.577417,0.00013972,2]
[334877565,1723624255240,-500.0,0.00013972,2]
[334877566,1723624255250,-4193.67913,0.00013972,2]
[334877567,1723624255259,-196.577417,0.00013972,2]
[334877568,1723624255270,-4193.679138,0.00013972,2]
[334877569,1723624255282,-196.577419,0.00013972,2]
[334877570,1723624255292,-500.0,0.00013972,2]
[334877571,1723624255303,-500.0,0.00013972,2]
[334877572,1723624255312,-500.0,0.00013972,2]
[334877573,1723624255323,-706.73,0.00013972,2]
[334877574,1723624255333,-500.0,0.00013972,2]
[334877575,1723624255343,-14459.08,0.00013972,2]
[334877576,1723624255354,-500.0,0.00013972,2]
[334877577,1723624255364,-2184.45,0.00013972,2]
[334877578,1723624255373,-500.0,0.00013972,2]
[334877579,1723624255383,-500.0,0.00013972,2]
[334877580,1723624255395,-223.39587357,0.00013972,2]
[334877581,1723624255404,-500.0,0.00013972,2]
[334877582,1723624255413,-500.0,0.00013972,2]
[334877583,1723624255422,-500.0,0.00013972,2]
[334877584,1723624255432,-201.96184611,0.00013972,2]
[334877585,1723624255441,-500.0,0.00013972,2]
[334877586,1723624255451,-2275.453086,0.00013972,2]
[334877587,1723624255461,-2275.453086,0.00013972,2]
[334877588,1723624255470,-799.51,0.00013972,2]
[334877589,1723624255479,-500.0,0.00013972,2]
[334877590,1723624255488,-268.6772697,0.00013972,2]
[334877591,1723624255497,-2275.453086,0.00013972,2]
[334877592,1723624255506,-2275.45308,0.00013972,2]
[334877593,1723624255515,-942.0,0.00013972,2]
[334877594,1723624255525,-500.0,0.00013972,2]
[334877595,1723624255534,-500.0,0.00013972,2]
[334877596,1723624255543,-504.08529673,0.00013972,2]
[334877597,1723624255552,-151.0,0.00013972,2]
[334877598,1723624255562,-500.0,0.00013972,2]
[334877599,1723624255571,-151.0,0.00013972,2]
[334877600,1723624255580,-500.0,0.00013972,2]
[334877601,1723624255589,-942.62,0.00013972,2]
[334877602,1723624255599,-500.0,0.00013972,2]
[334877603,1723624255610,-500.0,0.00013972,2]
[334877604,1723624255620,-500.0,0.00013972,2]
[334877605,1723624255631,-759.11,0.00013972,2]
[334877606,1723624255648,-500.0,0.00013972,2]
[334877607,1723624255659,-500.0,0.00013972,2]
[334877608,1723624255669,-500.0,0.00013972,2]
[334877609,1723624255680,-505.54971307,0.00013972,2]
[334877610,1723624255691,-513.41593774,0.00013972,2]
[334877611,1723624255701,-500.0,0.00013972,2]
[334877612,1723624255712,-500.0,0.00013972,2]
[334877613,1723624255724,-500.0,0.00013972,2]
[334877614,1723624255735,-4552.96,0.00013972,2]
[334877615,1723624255745,-500.0,0.00013972,2]
[334877616,1723624255755,-500.0,0.00013972,2]
[334877617,1723624255766,-500.0,0.00013972,2]
[334877618,1723624255777,-500.0,0.00013972,2]
[334877619,1723624255787,-632.61913951,0.00013972,2]
[334877620,1723624255797,-3173.63,0.00013972,2]
[334877621,1723624255808,-500.0,0.00013972,2]
[334877622,1723624255819,-500.0,0.00013972,2]
[334877623,1723624255830,-1598.54212,0.00013972,2]
[334877624,1723624255841,-1598.54212,0.00013972,2]
[334877625,1723624255850,-500.0,0.00013972,2]
[334877626,1723624255861,-500.0,0.00013972,2]
[334877627,1723624255871,-500.0,0.00013972,2]
[334877628,1723624255881,-500.0,0.00013972,2]
[334877629,1723624255895,-510.83580921,0.00013972,2]
[334877630,1723624255904,-1598.54212,0.00013972,2]
[334877631,1723624255916,-1598.542127,0.00013972,2]
[334877632,1723624255927,-276.281811,0.00013972,2]
[334877633,1723624255940,-500.0,0.00013972,2]
[334877634,1723624255950,-276.281811,0.00013972,2]
[334877635,1723624255962,-500.0,0.00013972,2]
[334877636,1723624255973,-500.0,0.00013972,2]
[334877637,1723624255984,-500.0,0.00013972,2]
[334877638,1723624255995,-500.8458069,0.00013972,2]
[334877639,1723624256005,-276.281811,0.00013972,2]
[334877640,1723624256016,-504.87956161,0.00013972,2]
[334877641,1723624256028,-276.281811,0.00013972,2]
[334877642,1723624256038,-500.0,0.00013972,2]
[334877643,1723624256048,-500.0,0.00013972,2]
[334877644,1723624256057,-500.0,0.00013972,2]
[334877645,1723624256069,-584.12603732,0.00013972,2]
[334877646,1723624256079,-500.0,0.00013972,2]
[334877647,1723624256089,-500.0,0.00013972,2]
[334877648,1723624256100,-777.25,0.00013972,2]
[334877649,1723624256110,-500.0,0.00013972,2]
[334877650,1723624256121,-500.0,0.00013972,2]
[334877651,1723624256134,-253.417584,0.00013972,2]
[334877652,1723624256145,-511.02378607,0.00013972,2]
[334877653,1723624256156,-538.46092112,0.00013972,2]
[334877654,1723624256166,-647.32,0.00013972,2]
[334877655,1723624256178,-976.14,0.00013972,2]
[334877656,1723624256189,-500.0,0.00013972,2]
[334877657,1723624256201,-507.50001772,0.00013972,2]
[334877658,1723624256212,-505.18204567,0.00013972,2]
[334877659,1723624256224,-500.0,0.00013972,2]
[334877660,1723624256234,-503.23776352,0.00013972,2]
[334877661,1723624256246,-500.0,0.00013972,2]
[334877662,1723624256255,-500.0,0.00013972,2]
[334877663,1723624256266,-4968.35,0.00013972,2]
[334877664,1723624256276,-581.40546261,0.00013972,2]
[334877665,1723624256287,-500.0,0.00013972,2]
[334877666,1723624256298,-500.0,0.00013972,2]
[334877667,1723624256308,-506.56949209,0.00013972,2]
[334877668,1723624256319,-1028.65,0.00013972,2]
[334877669,1723624256329,-500.0,0.00013972,2]
[334877670,1723624256340,-500.0,0.00013972,2]
[334877671,1723624256349,-500.0,0.00013972,2]
[334877672,1723624256359,-500.0,0.00013972,2]
[334877673,1723624256368,-500.0,0.00013972,2]
[334877674,1723624256377,-151.0,0.00013972,2]
[334877675,1723624256388,-500.0,0.00013972,2]
[334877676,1723624256397,-1429.54,0.00013972,2]
[334877677,1723624256406,-500.0,0.00013972,2]
[334877678,1723624256416,-1070.11,0.00013972,2]
[334877679,1723624256427,-601.52053007,0.00013972,2]
[334877680,1723624256437,-509.03909418,0.00013972,2]
[334877681,1723624256447,-154.76012181,0.00014054,2]
[334877682,1723624256458,-2258.0,0.00014063,2]
[334877683,1723624256468,-222.651869,0.00014103,2]
[334877684,1723624256479,-193.608411,0.00014103,2]
[334877685,1723624256489,-179.541332,0.00014103,2]
[334877686,1723624256499,-173.834978,0.00014103,2]
[334877687,1723624256511,-167.140718,0.00014103,2]
[334877688,1723624256624,-180.609575,0.00014103,2]
[334877689,1723624256634,-163.741697,0.00014103,2]
[334877690,1723624256649,-184.050922,0.00014103,2]
[334877691,1723624256659,-167.319093,0.00014103,2]
[334877692,1723624256670,-1000.0,0.00014136,2]
[334877693,1723624256681,-420201.56846582,0.000142,2]
[334877694,1723624256695,-20337.9646706,0.000142,2]
[334877695,1723624257106,-155.1282832,8.966e-05,2]
[334877696,1723624257115,-156.07366263,8.966e-05,2]
[334877697,1723624257125,-158.01490399,8.966e-05,2]
[334877698,1723624257135,-1446.98,0.00010959,2]
[334877699,1723624257146,-202.66902492,0.00013673,3]
[334877700,1723624257156,-180.69959783,0.00013679,2]
[334877701,1723624257166,-500.0,0.00013698,2]
[334877702,1723624257175,-155.604859,0.00013698,2]
[334877703,1723624257184,-151.0,0.00013698,2]
[334877704,1723624257194,-516.09364775,0.00013698,2]
[334877705,1723624257203,-500.0,0.00013698,2]
[334877706,1723624257212,-800.75,0.00013698,2]
[334877707,1723624257222,-500.0,0.00013698,2]
[334877708,1723624257231,-151.0,0.00013699,2]
[334877709,1723624257240,-155.604859,0.00013699,2]
[334877710,1723624257250,-238.998247,0.000137,2]
[334877711,1723624257260,-155.604859,0.000137,2]
[334877712,1723624257269,-500.0,0.00013972,2]
[334877713,1723624257278,-500.0,0.00013972,2]
[334877714,1723624257288,-1309.75159391,0.000142,2]
[334877715,1723624257297,-500.0,0.00014246,2]
[334877716,1723624257307,-500.0,0.00014246,2]
[334877717,1723624257316,-502.91460829,0.00014246,2]
[334877718,1723624257326,-505.46616343,0.00014246,2]
[334877719,1723624257337,-500.0,0.00014246,2]
[334877720,1723624257348,-500.0,0.00014246,2]
[334877721,1723624257359,-507.77329335,0.00014246,2]
[334877722,1723624257368,-500.0,0.00014246,2]
[334877723,1723624257378,-500.0,0.00014246,2]
[334877724,1723624257390,-500.0,0.00014246,2]
[334877725,1723624257400,-500.0,0.00014246,2]
[334877726,1723624257410,-506.89795786,0.00014246,2]
[334877727,1723624257421,-500.0,0.00014246,2]
[334877728,1723624257431,-500.0,0.00014246,2]
[334877729,1723624257439,-500.0,0.00014246,2]
[334877730,1723624257448,-500.0,0.00014246,2]
[334877731,1723624257457,-500.0,0.00014246,2]
[334877732,1723624257466,-500.0,0.00014246,2]
[334877733,1723624257475,-500.0,0.00014246,2]
[334877734,1723624257484,-500.0,0.00014246,2]
[334877735,1723624257494,-192.61966179,0.00014246,2]
[334877736,1723624257505,-500.0,0.00014246,2]
[334877737,1723624257516,-636.73,0.00014246,2]
[334877738,1723624257526,-500.0,0.00014246,2]
[334877739,1723624257537,-500.0,0.00014246,2]
[334877740,1723624257547,-628.01602084,0.00014246,2]
[334877741,1723624257557,-500.0,0.00014246,2]
[334877742,1723624257569,-500.0,0.00014246,2]
[334877743,1723624257579,-500.0,0.00014246,2]
[334877744,1723624257588,-428.50959537,0.00014246,2]
[334877745,1723624257599,-500.0,0.00014246,2]
[334877746,1723624257610,-500.0,0.00014246,2]
[334877747,1723624257621,-515.13621004,0.00014246,2]
[334877748,1723624257631,-500.0,0.00014246,2]
[334877749,1723624257645,-500.0,0.00014246,2]
[334877750,1723624257655,-509.67365765,0.00014246,2]
[334877751,1723624257664,-502.88120269,0.00014246,2]
[334877752,1723624257673,-500.0,0.00014246,2]
[334877753,1723624257683,-525.72218012,0.00014246,2]
[334877754,1723624257693,-190.33582216,0.00014246,2]
[334877755,1723624257702,-530.49630586,0.00014246,2]
[334877756,1723624257711,-1693.32,0.00014246,2]
[334877757,1723624257722,-500.0,0.00014246,2]
[334877758,1723624257731,-500.0,0.00014246,2]
[334877759,1723624257740,-500.0,0.00014246,2]
[334877760,1723624257749,-506.04752031,0.00014246,2]
[334877761,1723624257759,-500.0,0.00014246,2]
[334877762,1723624257768,-500.0,0.00014246,2]
[334877763,1723624257777,-500.0,0.00014246,2]
[334877764,1723624257785,-500.0,0.00014246,2]
[334877765,1723624257794,-500.0,0.00014246,2]
[334877766,1723624257804,-500.0,0.00014246,2]
[334877767,1723624257813,-500.0,0.00014246,2]
[334877768,1723624257822,-500.0,0.00014246,2]
[334877769,1723624257832,-512.04211602,0.00014246,2]
[334877770,1723624257841,-500.0,0.00014246,2]
[334877771,1723624257851,-500.0,0.00014246,2]
[334877772,1723624257860,-500.0,0.00014246,2]
[334877773,1723624257869,-500.0,0.00014246,2]
[334877774,1723624257879,-500.0,0.00014246,2]
[334877775,1723624257888,-521.27900516,0.00014246,2]
[334877776,1723624257899,-505.86186644,0.00014246,2]
[334877777,1723624257908,-500.0,0.00014246,2]
[334877778,1723624257918,-527.18346107,0.00014246,2]
[334877779,1723624257927,-185.7433927,0.00014246,2]
[334877780,1723624257936,-520.98832846,0.00014246,2]
[334877781,1723624257946,-501.04828112,0.00014246,2]
[334877782,1723624257956,-500.0,0.00014246,2]
[334877783,1723624257965,-500.0,0.00014246,2]
[334877784,1723624257975,-500.0,0.00014246,2]
[334877785,1723624257985,-500.0,0.00014246,2]
[334877786,1723624257994,-500.0,0.00014246,2]
[334877787,1723624258004,-504.91034911,0.00014246,2]
[334877788,1723624258013,-500.0,0.00014246,2]
[334877789,1723624258023,-506.65142201,0.00014246,2]
[334877790,1723624258032,-505.29201818,0.00014246,2]
[334877791,1723624258041,-500.0,0.00014246,2]
[334877792,1723624258050,-500.0,0.00014246,2]
[334877793,1723624258060,-504.35321213,0.00014246,2]
[334877794,1723624258069,-500.0,0.00014246,2]
[334877795,1723624258078,-500.0,0.00014246,2]
[334877796,1723624258088,-517.16502082,0.00014246,2]
[334877797,1723624258097,-250.53568514,0.00014246,2]
[334877798,1723624258106,-500.0,0.00014246,2]
[334877799,1723624258116,-500.0,0.00014246,2]
[334877800,1723624258127,-500.0,0.00014246,2]
[334877801,1723624258138,-500.0,0.00014246,2]
[334877802,1723624258149,-500.0,0.00014246,2]
[334877803,1723624258159,-500.0,0.00014246,2]
[334877804,1723624258169,-500.0,0.00014246,2]
[334877805,1723624258179,-288.16763253,0.00014246,2]
[334877806,1723624258190,-586.95,0.00014246,2]
[334877807,1723624258202,-500.0,0.00014246,2]
[334877808,1723624258213,-500.0,0.00014246,2]
[334877809,1723624258224,-500.0,0.00014246,2]
[334877810,1723624258234,-500.0,0.00014246,2]
[334877811,1723624258246,-500.0,0.00014246,2]
[334877812,1723624258257,-500.0,0.00014246,2]
[334877813,1723624258267,-500.0,0.00014246,2]
[334877814,1723624258279,-500.0,0.00014246,2]
[334877815,1723624258288,-500.0,0.00014246,2]
[334877816,1723624258297,-500.0,0.00014246,2]
[334877817,1723624258307,-2744.575246,0.00014246,2]
[334877818,1723624258316,-2744.575246,0.00014246,2]
[334877819,1723624258325,-500.0,0.00014246,2]
[334877820,1723624258334,-490.37589592,0.00014246,2]
[334877821,1723624258344,-500.0,0.00014246,2]
[334877822,1723624258353,-500.0,0.00014246,2]
[334877823,1723624258362,-509.370741,0.00014246,2]
[334877824,1723624258371,-521.31,0.00014246,2]
[334877825,1723624258381,-500.0,0.00014246,2]
[334877826,1723624258390,-500.0,0.00014246,2]
[334877827,1723624258399,-289.758776,0.00014246,2]
[334877828,1723624258408,-289.758776,0.00014246,2]
[334877829,1723624258419,-289.758776,0.00014246,2]
[334877830,1723624258430,-289.758776,0.00014246,2]
[334877831,1723624258440,-500.0,0.00014246,2]
[334877832,1723624258451,-500.0,0.00014246,2]
[334877833,1723624258460,-503.41857504,0.00014246,2]
[334877834,1723624258471,-500.0,0.00014246,2]
[334877835,1723624258483,-278.97063482,0.00014246,2]
[334877836,1723624258492,-500.0,0.00014246,2]
[334877837,1723624258501,-500.0,0.00014246,2]
[334877838,1723624258513,-500.0,0.00014246,2]
[334877839,1723624258522,-509.77348681,0.00014246,2]
[334877840,1723624258532,-500.0,0.00014246,2]
[334877841,1723624258543,-500.0,0.00014246,2]
[334877842,1723624258554,-500.0,0.00014246,2]
[334877843,1723624258565,-500.0,0.00014246,2]
[334877844,1723624258576,-500.0,0.00014246,2]
[334877845,1723624258586,-500.0,0.00014246,2]
[334877846,1723624258595,-500.0,0.00014246,2]
[334877847,1723624258606,-507.95929702,0.00014246,2]
[334877848,1723624258617,-500.0,0.00014246,2]
[334877849,1723624258627,-500.0,0.00014246,2]
[334877850,1723624258637,-506.4223629,0.00014246,2]
[334877851,1723624258651,-500.0,0.00014246,2]
[334877852,1723624258761,-500.0,0.00014246,2]
[334877853,1723624258771,-500.0,0.00014246,2]
[334877854,1723624258780,-500.0,0.00014246,2]
[334877855,1723624258790,-510.38446411,0.00014246,2]
[334877856,1723624258800,-500.0,0.00014246,2]
[334877857,1723624258809,-500.0,0.00014246,2]
[334877858,1723624258818,-746.88,0.00014246,2]
[334877859,1723624258827,-500.0,0.00014246,2]
[334877860,1723624258837,-503.18841935,0.00014246,2]
[334877861,1723624258847,-720.49,0.00014246,2]
[334877862,1723624258856,-500.0,0.00014246,2]
[334877863,1723624258866,-500.0,0.00014246,2]
[334877864,1723624258875,-570.5296402,0.00014246,2]
[334877865,1723624258884,-500.0,0.00014246,2]
[334877866,1723624258895,-500.0,0.00014246,2]
[334877867,1723624258905,-508.96839384,0.00014246,2]
[334877868,1723624258914,-879.15,0.00014246,2]
[334877869,1723624258923,-503.45,0.00014246,2]
[334877870,1723624258933,-500.0,0.00014246,2]
[334877871,1723624258942,-500.0,0.00014246,2]
[334877872,1723624258951,-1225.7,0.00014246,2]
[334877873,1723624258960,-500.0,0.00014246,2]
[334877874,1723624258969,-500.0,0.00014246,2]
[334877875,1723624258978,-505.04814957,0.00014246,2]
[334877876,1723624258987,-506.80680366,0.00014246,2]
[334877877,1723624258996,-1110.32,0.00014246,2]
[334877878,1723624259005,-500.0,0.00014246,2]
[334877879,1723624259014,-500.0,0.00014246,2]
[334877880,1723624259024,-506.03447275,0.00014246,2]
[334877881,1723624259034,-509.69022598,0.00014246,2]
[334877882,1723624259043,-505.50159593,0.00014246,2]
[334877883,1723624259052,-500.0,0.00014246,2]
[334877884,1723624259062,-500.0,0.00014246,2]
[334877885,1723624259071,-659.456324,0.00014246,2]
[334877886,1723624259080,-659.456318,0.00014246,2]
[334877887,1723624259090,-500.0,0.00014246,2]
[334877888,1723624259100,-622.08267186,0.00014246,2]
[334877889,1723624259109,-511.64241606,0.00014246,2]
[334877890,1723624259119,-500.0,0.00014246,2]
[334877891,1723624259129,-525.48094796,0.00014246,2]
[334877892,1723624259139,-500.0,0.00014246,2]
[334877893,1723624259148,-609.96,0.00014246,2]
[334877894,1723624259158,-667.18,0.00014246,2]
[334877895,1723624259170,-500.0,0.00014246,2]
[334877896,1723624259181,-513.27,0.00014246,2]
[334877897,1723624259191,-500.0,0.00014246,2]
[334877898,1723624259201,-519.30900387,0.00014246,2]
[334877899,1723624259213,-506.84768815,0.00014246,2]
[334877900,1723624259224,-500.0,0.00014246,2]
[334877901,1723624259234,-504.53185708,0.00014246,2]
[334877902,1723624259244,-500.0,0.00014246,2]
[334877903,1723624259254,-391.014108,0.00014246,2]
[334877904,1723624259264,-502.37021962,0.00014246,2]
[334877905,1723624259273,-509.29664126,0.00014246,2]
[334877906,1723624259283,-500.0,0.00014246,2]
[334877907,1723624259292,-391.014099,0.00014246,2]
[334877908,1723624259302,-500.0,0.00014246,2]
[334877909,1723624259311,-500.0,0.00014246,2]
[334877910,1723624259321,-500.0,0.00014246,2]
[334877911,1723624259330,-500.0,0.00014246,2]
[334877912,1723624259340,-500.0,0.00014246,2]
[334877913,1723624259349,-418.665375,0.00014246,2]
[334877914,1723624259360,-500.0,0.00014246,2]
[334877915,1723624259369,-418.665373,0.00014246,2]
[334877916,1723624259379,-500.0,0.00014246,2]
[334877917,1723624259389,-500.0,0.00014246,2]
[334877918,1723624259399,-500.0,0.00014246,2]
[334877919,1723624259408,-500.0,0.00014246,2]
[334877920,1723624259418,-505.84463342,0.00014246,2]
[334877921,1723624259427,-503.99146235,0.00014246,2]
[334877922,1723624259437,-500.0,0.00014246,2]
[334877923,1723624259447,-687.75,0.00014246,2]
[334877924,1723624259457,-507.66805373,0.00014246,2]
[334877925,1723624259466,-500.0,0.00014246,2]
[334877926,1723624259476,-500.0,0.00014246,2]
[334877927,1723624259486,-789.68,0.00014246,2]
[334877928,1723624259496,-513.39905141,0.00014246,2]
[334877929,1723624259505,-502.49239702,0.00014246,2]
[334877930,1723624259515,-503.90051778,0.00014246,2]
[334877931,1723624259526,-561.07742481,0.00014246,2]
[334877932,1723624259538,-500.0,0.00014246,2]
[334877933,1723624259549,-238.9673536,0.00014246,2]
[334877934,1723624259559,-500.0,0.00014246,2]
[334877935,1723624259569,-500.0,0.00014246,2]
[334877936,1723624259578,-500.0,0.00014246,2]
[334877937,1723624259588,-407.99483779,0.00014246,2]
[334877938,1723624259599,-500.0,0.00014246,2]
[334877939,1723624259609,-2137.024966,0.00014246,2]
[334877940,1723624259619,-725.88,0.00014246,2]
[334877941,1723624259631,-500.0,0.00014246,2]
[334877942,1723624259646,-2137.024957,0.00014246,2]
[334877943,1723624259657,-500.0,0.00014246,2]
[334877944,1723624259667,-1061.69,0.00014246,2]
[334877945,1723624259676,-500.0,0.00014246,2]
[334877946,1723624259688,-1984.74,0.00014246,2]
[334877947,1723624259699,-431.59435944,0.00014246,2]
[334877948,1723624259712,-596.9,0.00014246,2]
[334877949,1723624259726,-458.80506921,0.00014246,2]
[334877950,1723624259738,-500.0,0.00014246,2]
[334877951,1723624259748,-1416.324261,0.00014246,2]
[334877952,1723624259760,-500.0,0.00014246,2]
[334877953,1723624259770,-516.24,0.00014246,2]
[334877954,1723624259780,-254.806915,0.00014246,2]
[334877955,1723624259790,-863.21,0.00014246,2]
[334877956,1723624259799,-1416.32425859,0.00014246,2]
[334877957,1723624259809,-578.79261458,0.00014246,2]
[334877958,1723624259819,-254.806917,0.00014246,2]
[334877959,1723624259828,-500.0,0.00014246,2]
[334877960,1723624259838,-500.0,0.00014246,2]
[334877961,1723624259850,-500.0,0.00014246,2]
[334877962,1723624259862,-594.2,0.00014246,2]
[334877963,1723624259872,-500.0,0.00014246,2]
[334877964,1723624259885,-500.0,0.00014246,2]
[334877965,1723624259896,-500.0,0.00014246,2]
[334877966,1723624259907,-300.772827,0.00014246,2]
[334877967,1723624259917,-500.0,0.00014246,2]
[334877968,1723624259926,-300.772834,0.00014246,2]
[334877969,1723624259935,-770.78,0.00014246,2]
[334877970,1723624259944,-152.083255,0.00014246,2]
[334877971,1723624259953,-190.11337613,0.00014246,2]